[Event "XXXVIII Benasque Open 2018"]
[Site "Benasque"]
[Date "2018.07.09"]
[Round "5"]
[White "Banusz, Tamas"]
[Black "Lalic, Bogdan"]
[Result "1/2-1/2"]
[ECO "E18"]
[WhiteElo "2607"]
[BlackElo "2394"]
[Annotator "RC"]
[PlyCount "138"]
[EventDate "2018.07.05"]
[EventType "swiss"]
[EventCountry "ESP"]
[SourceTitle "playchess.com"]
[Source "ChessBase"]
[SourceQuality "1"]
[TimeControl "5400+30"]

1. Nf3 {[%emt 0:01:14]} Nf6 {[%emt 0:00:00]} 2. c4 {[%emt 0:00:12]} e6 {[%emt 0:00:00]} 3. g3 {[%emt 0:00:05]} b6 {[%emt 0:00:08]} 4. Bg2 {[%emt 0:00:11]} Bb7 {[%emt 0:00:08]} 5. O-O {[%emt 0:00:06]} Be7 {[%emt 0:00:10]} 6. d4 {[%emt 0:00:07]} O-O {[%emt 0:00:09]} 7. Nc3 {[%emt 0:00:03]} Na6 {[%emt 0:00:12]} 8. Bf4 {[%emt 0:03:46]} Ne4 {[%emt 0:00:51]} 9. Rc1 {[%emt 0:12:23]} Nxc3 {[%emt 0:01:25]} 10. Rxc3 {[%emt 0:00:07]} c5 {[%emt 0:00:38]} 11. a3 {[%emt 0:05:19]} cxd4 {[%emt 0:01:32]} 12. Nxd4 {[%emt 0:00:13]} Bxg2 {[%emt 0:00:13]} 13. Kxg2 {[%emt 0:00:03]} Nc5 {[%emt 0:05:36]} 14. Rc2 {[%emt 0:06:48]} Qc8 {[%emt 0:04:06]} 15. f3 {[%emt 0:02:38]} d6 {[%emt 0:09:20]} 16. e4 {[%emt 0:06:37]} a6 {[%emt 0:02:07]} 17. b4 {[%emt 0:04:43]} Nd7 {[%emt 0:00:38]} 18. Be3 {[%emt 0:07:42]} Qb7 {[%emt 0:00:53]} 19. Qe2 Rfe8 {[%emt 0:03:08]} 20. Rd1 {[%emt 0:04:20]} Rac8 {[%emt 0:03:22]} 21. Bf2 {[%emt 0:00:14]} Bf8 {[%emt 0:05:34]} 22. Rdc1 {[%emt 0:06:26]} h6 {[%emt 0:01:34]} 23. Kg1 {[%emt 0:00:58]} Ne5 {[%emt 0:01:25]} 24. f4 {[%emt 0:05:03]} Nd7 {[%emt 0:00:17]} 25. Nf3 {[%emt 0:01:52]} e5 {[%emt 0:02:12]} 26. f5 {[%emt 0:01:19]} Nf6 {[%emt 0:00:10]} 27. Nd2 {[%emt 0:00:46]} b5 {[%emt 0:00:10]} 28. Qd3 {[%emt 0:04:12]} bxc4 {[%emt 0:01:45]} 29. Rxc4 {[%emt 0:00:56]} Qb5 {[%emt 0:01:52]} 30. R1c3 {[%emt 0:04:19]} Rxc4 {[%emt 0:09:26]} 31. Qxc4 {[%emt 0:00:04]} d5 {[%emt 0:00:16]} 32. exd5 {[%emt 0:01:36]} Nxd5 {[%emt 0:00:05]} 33. Rc1 {[%emt 0:06:20]} Nf6 {[%emt 0:01:23]} 34. Qxb5 {[%emt 0:02:01]} axb5 {[%emt 0:00:05]} 35. Nb1 {[%emt 0:01:20]} Ne4 {[%emt 0:02:25]} 36. Kf1 {[%emt 0:02:34]} h5 {[%emt 0:01:54]} 37. h3 {[%emt 0:01:31]} f6 {[%emt 0:01:22]} 38. g4 {[%emt 0:01:25]} hxg4 {[%emt 0:00:07]} 39. hxg4 g6 40. fxg6 {[%emt 0:01:02]} Kg7 {[%emt 0:01:36]} 41. Be3 {[%emt 0:00:30]} Kxg6 {[%emt 0:00:13]} 42. Ke2 {[%emt 0:00:48]} Re6 {[%emt 0:17:01]} 43. Kd3 {[%emt 0:01:18]} Nd6 {[%emt 0:01:06]} 44. Rc6 {[%emt 0:00:07]} Kf7 {[%emt 0:01:07]} 45. Nc3 {[%emt 0:01:18]} e4+ {[%emt 0:02:30]} 46. Ke2 {[%emt 0:00:07]} Nc4 {[%emt 0:02:31]} 47. Rc7+ {[%emt 0:00:28]} Re7 {[%emt 0:00:15]} 48. Rxe7+ {[%emt 0:01:54]} Bxe7 {[%emt 0:00:05]} 49. Bc1 {[%emt 0:01:34]} Nd6 {[%emt 0:04:20]} 50. Bf4 {[%emt 0:00:42]} Nc4 {[%emt 0:00:06]} 51. Nxb5 {[%emt 0:00:28]} f5 {[%emt 0:00:07]} 52. gxf5 {[%emt 0:01:28]} Kf6 {[%emt 0:00:04]} 53. Bd2 {[%emt 0:01:12]} Kxf5 {[%emt 0:00:06]} 54. Be1 {[%emt 0:01:20]} Ke6 {[%emt 0:03:42]} 55. a4 {[%emt 0:00:20]} Kd7 {[%emt 0:01:58]} 56. a5 {[%emt 0:00:07]} Kc6 {[%emt 0:02:26]} 57. Nd4+ {[%emt 0:00:16]} Kd5 {[%emt 0:00:16]} 58. a6 {[%emt 0:01:22]} Bf6 {[%emt 0:04:52]} 59. a7 {[%emt 0:01:06]} Nb6 {[%emt 0:00:05]} 60. Nb3 {[%emt 0:01:07]} Kc6 {[%emt 0:00:40]} 61. Na5+ {[%emt 0:00:34]} Kb5 {[%emt 0:00:12]} 62. Ke3 {[%emt 0:00:19]} Ka6 {[%emt 0:01:33]} 63. Nc6 {[%emt 0:00:12]} Kb7 {[%emt 0:01:32]} 64. b5 {[%emt 0:00:06]} Nd5+ {[%emt 0:01:23]} 65. Kxe4 {[%emt 0:00:25]} Nc7 {[%emt 0:00:08]} 66. Na5+ {[%emt 0:00:29]} Kxa7 {[%emt 0:00:05]} 67. Bf2+ {[%emt 0:00:03]} Kb8 {[%emt 0:00:16]} 68. b6 {[%emt 0:00:35]} Bc3 {[%emt 0:00:48]} 69. Nc4 {[%emt 0:00:17]} Na8 {[%emt 0:00:51]} 1/2-1/2

[Event "XXXVIII Benasque Open 2018"]
[Site "Benasque"]
[Date "2018.07.09"]
[Round "5"]
[White "Chigaev, Maksim"]
[Black "Domingo Nunez, Alejandro"]
[Result "1/2-1/2"]
[ECO "A08"]
[WhiteElo "2582"]
[BlackElo "2369"]
[Annotator "ChessBase"]
[PlyCount "71"]
[EventDate "2018.07.05"]
[EventType "swiss"]
[EventCountry "ESP"]
[SourceTitle "playchess.com"]
[Source "ChessBase"]
[SourceQuality "1"]
[TimeControl "5400+30"]

1. g3 {[%emt 0:00:00]} c5 {[%emt 0:00:11]} 2. Bg2 {[%emt 0:00:32]} Nc6 {[%emt 0:00:39]} 3. e4 {[%emt 0:01:10]} e6 {[%emt 0:00:14]} 4. Nf3 {[%emt 0:03:32]} Nf6 {[%emt 0:00:09]} 5. d3 {[%emt 0:00:06]} d5 {[%emt 0:00:38]} 6. Nbd2 {[%emt 0:00:05]} Be7 {[%emt 0:00:41]} 7. O-O {[%emt 0:00:10]} O-O {[%emt 0:00:09]} 8. Re1 {[%emt 0:00:08]} b5 {[%emt 0:00:32]} 9. a4 {[%emt 0:01:53]} b4 {[%emt 0:02:23]} 10. exd5 {[%emt 0:00:07]} exd5 {[%emt 0:01:06]} 11. d4 {[%emt 0:00:10]} Bg4 {[%emt 0:07:08]} 12. dxc5 {[%emt 0:07:05]} Bxc5 {[%emt 0:05:24]} 13. Nb3 {[%emt 0:00:14]} Bb6 {[%emt 0:03:04]} 14. Be3 {[%emt 0:04:43]} Re8 {[%emt 0:06:13]} 15. Bxb6 {[%emt 0:02:41]} Rxe1+ {[%emt 0:00:56]} 16. Qxe1 {[%emt 0:01:27]} Qxb6 {[%emt 0:00:04]} 17. a5 {[%emt 0:00:45]} Qc7 {[%emt 0:04:15]} 18. Qe3 {[%emt 0:07:12]} Bxf3 {[%emt 0:05:28]} 19. Qxf3 {[%emt 0:04:49]} Ne5 {[%emt 0:01:44]} 20. Qf4 {[%emt 0:06:50]} Qxc2 {[%emt 0:06:45]} 21. Qxe5 {[%emt 0:00:12]} Qxb3 {[%emt 0:00:04]} 22. Qd4 {[%emt 0:00:15]} Re8 {[%emt 0:13:10]} 23. a6 {[%emt 0:06:12]} h6 {[%emt 0:07:05]} 24. Rf1 {[%emt 0:08:21]} Qa2 {[%emt 0:05:43]} 25. Qxa7 {[%emt 0:01:04]} Qxb2 {[%emt 0:00:05]} 26. Qb7 {[%emt 0:00:09]} Qa2 {[%emt 0:00:14]} 27. a7 {[%emt 0:01:46]} b3 {[%emt 0:00:02]} 28. Bh3 {[%emt 0:00:57]} Ne4 {[%emt 0:01:17]} 29. Bd7 {[%emt 0:22:21]} Rf8 {[%emt 0:06:16]} 30. Bc6 {[%emt 0:00:25]} Nc3 {[%emt 0:00:14]} 31. a8=Q {[%emt 0:04:51]} Qxa8 {[%emt 0:00:20]} 32. Qxa8 {[%emt 0:00:05]} Rxa8 {[%emt 0:00:04]} 33. Bxa8 {[%emt 0:00:05]} b2 {[%emt 0:00:04]} 34. Bxd5 {[%emt 0:00:11]} b1=Q {[%emt 0:00:07]} 35. Rxb1 {[%emt 0:00:04]} Nxb1 {[%emt 0:00:05]} 36. Kg2 {[%emt 0:00:04]} 1/2-1/2

[Event "XXXVIII Benasque Open 2018"]
[Site "Benasque"]
[Date "2018.07.09"]
[Round "5"]
[White "Kharitonov, Alexandr"]
[Black "Martin Duque, Jesus"]
[Result "1-0"]
[ECO "E33"]
[WhiteElo "2564"]
[BlackElo "2381"]
[Annotator "ChessBase"]
[PlyCount "121"]
[EventDate "2018.07.05"]
[EventType "swiss"]
[EventCountry "ESP"]
[SourceTitle "playchess.com"]
[Source "ChessBase"]
[SourceQuality "1"]
[TimeControl "5400+30"]

1. d4 {[%emt 0:00:00]} Nf6 {[%emt 0:06:46]} 2. c4 {[%emt 0:00:00]} e6 {[%emt 0:00:04]} 3. Nc3 {[%emt 0:00:00]} Bb4 {[%emt 0:00:04]} 4. Qc2 {[%emt 0:00:02]} Nc6 {[%emt 0:00:05]} 5. Nf3 {[%emt 0:00:21]} d6 {[%emt 0:00:12]} 6. Bd2 {[%emt 0:00:26]} O-O {[%emt 0:00:08]} 7. a3 {[%emt 0:00:07]} Bxc3 {[%emt 0:00:07]} 8. Bxc3 {[%emt 0:00:07]} Re8 {[%emt 0:00:06]} 9. Rd1 {[%emt 0:00:57]} Qe7 {[%emt 0:00:07]} 10. e3 {[%emt 0:02:56]} e5 {[%emt 0:03:17]} 11. d5 {[%emt 0:00:18]} Nb8 {[%emt 0:00:04]} 12. Nd2 {[%emt 0:00:18]} a5 {[%emt 0:00:22]} 13. b3 {[%emt 0:04:47]} Nbd7 {[%emt 0:01:51]} 14. Be2 {[%emt 0:00:48]} Nc5 {[%emt 0:06:09]} 15. b4 {[%emt 0:10:18]} axb4 {[%emt 0:03:03]} 16. axb4 {[%emt 0:00:04]} Na4 {[%emt 0:01:38]} 17. Ba1 {[%emt 0:00:26]} Bd7 {[%emt 0:03:55]} 18. O-O {[%emt 0:01:59]} b5 {[%emt 0:09:35]} 19. e4 {[%emt 0:05:40]} bxc4 {[%emt 0:06:32]} 20. Nxc4 {[%emt 0:00:30]} Nb6 {[%emt 0:02:02]} 21. Nxb6 {[%emt 0:01:01]} cxb6 {[%emt 0:00:02]} 22. Rc1 {[%emt 0:00:27]} Rec8 {[%emt 0:05:55]} 23. Qb1 {[%emt 0:00:56]} Rxc1 {[%emt 0:07:54]} 24. Rxc1 {[%emt 0:00:04]} Qe8 {[%emt 0:00:33]} 25. Qd3 {[%emt 0:09:07]} h6 {[%emt 0:07:25]} 26. f3 {[%emt 0:04:19]} Ra2 {[%emt 0:03:00]} 27. Bc3 {[%emt 0:00:40]} Qa8 {[%emt 0:02:05]} 28. Be1 {[%emt 0:00:52]} Ra1 {[%emt 0:08:19]} 29. Rxa1 {[%emt 0:02:23]} Qxa1 {[%emt 0:00:04]} 30. Kf2 {[%emt 0:00:19]} Nh5 {[%emt 0:03:00]} 31. g3 {[%emt 0:00:11]} Nf6 {[%emt 0:00:32]} 32. Qe3 {[%emt 0:00:48]} Qa7 {[%emt 0:00:46]} 33. Kg2 {[%emt 0:01:00]} Qc7 {[%emt 0:00:23]} 34. Bd3 {[%emt 0:05:16]} b5 {[%emt 0:04:28]} 35. Qe2 {[%emt 0:02:20]} Qb7 {[%emt 0:00:03]} 36. f4 {[%emt 0:03:35]} exf4 {[%emt 0:01:15]} 37. gxf4 {[%emt 0:00:04]} Qc8 {[%emt 0:02:21]} 38. Bd2 {[%emt 0:01:24]} Bg4 {[%emt 0:04:05]} 39. Qe3 {[%emt 0:05:48]} Bd1 {[%emt 0:00:49]} 40. h3 {[%emt 0:05:57]} Bc2 {[%emt 0:00:17]} 41. Qd4 {[%emt 0:00:41]} Bxd3 {[%emt 0:00:55]} 42. Qxd3 {[%emt 0:00:03]} Qe8 {[%emt 0:01:54]} 43. Kf3 {[%emt 0:00:15]} Qd7 {[%emt 0:00:05]} 44. f5 {[%emt 0:00:19]} Qa7 {[%emt 0:02:13]} 45. Bf4 {[%emt 0:02:03]} Qg1 {[%emt 0:01:25]} 46. Bxd6 {[%emt 0:01:17]} Qh1+ {[%emt 0:00:05]} 47. Ke3 {[%emt 0:00:05]} Qxh3+ {[%emt 0:00:29]} 48. Kd4 {[%emt 0:00:10]} Qh1 {[%emt 0:00:51]} 49. Bf4 {[%emt 0:01:56]} Qg1+ {[%emt 0:02:44]} 50. Be3 {[%emt 0:05:01]} Qa1+ {[%emt 0:00:02]} 51. Kc5 {[%emt 0:00:04]} Qe5 {[%emt 0:01:19]} 52. Kxb5 {[%emt 0:05:03]} Nxe4 {[%emt 0:00:12]} 53. Bc5 {[%emt 0:00:08]} Qxf5 {[%emt 0:02:26]} 54. d6 {[%emt 0:00:12]} Qd7+ {[%emt 0:00:53]} 55. Kb6 {[%emt 0:00:14]} Nf6 {[%emt 0:00:35]} 56. Qf3 {[%emt 0:01:15]} Qa4 {[%emt 0:01:45]} 57. Qc6 {[%emt 0:00:31]} Qa2 {[%emt 0:00:34]} 58. d7 {[%emt 0:00:46]} Nxd7+ {[%emt 0:00:34]} 59. Qxd7 {[%emt 0:00:02]} h5 {[%emt 0:00:26]} 60. b5 {[%emt 0:00:19]} h4 {[%emt 0:00:15]} 61. Qd8+ {[%emt 0:00:04]} 1-0

[Event "XXXVIII Benasque Open 2018"]
[Site "Benasque"]
[Date "2018.07.09"]
[Round "5"]
[White "Soham, Das"]
[Black "Forcen Esteban, Daniel"]
[Result "1/2-1/2"]
[ECO "C11"]
[WhiteElo "2359"]
[BlackElo "2567"]
[Annotator "ChessBase"]
[PlyCount "41"]
[EventDate "2018.07.05"]
[EventType "swiss"]
[EventCountry "ESP"]
[SourceTitle "playchess.com"]
[Source "ChessBase"]
[SourceQuality "1"]
[TimeControl "5400+30"]

1. e4 {[%emt 0:00:00]} e6 {[%emt 0:00:00]} 2. d4 {[%emt 0:00:00]} d5 {[%emt 0:00:00]} 3. Nc3 {[%emt 0:00:00]} Nf6 {[%emt 0:00:00]} 4. e5 {[%emt 0:00:02]} Nfd7 {[%emt 0:00:00]} 5. f4 {[%emt 0:00:04]} c5 {[%emt 0:00:03]} 6. Nf3 {[%emt 0:00:03]} Nc6 {[%emt 0:00:15]} 7. Be3 {[%emt 0:00:05]} cxd4 {[%emt 0:00:13]} 8. Nxd4 {[%emt 0:00:05]} Bc5 {[%emt 0:00:05]} 9. Qd2 {[%emt 0:00:44]} O-O {[%emt 0:00:08]} 10. O-O-O {[%emt 0:00:03]} a6 {[%emt 0:00:04]} 11. Qf2 {[%emt 0:00:13]} Nxd4 {[%emt 0:00:17]} 12. Bxd4 {[%emt 0:00:02]} b6 {[%emt 0:00:07]} 13. Bd3 {[%emt 0:10:38]} f6 {[%emt 0:03:55]} 14. Qh4 {[%emt 0:21:10]} g6 {[%emt 0:00:48]} 15. Bxc5 {[%emt 0:09:38]} bxc5 {[%emt 0:06:39]} 16. f5 {[%emt 0:19:24]} gxf5 {[%emt 0:20:00]} 17. Nxd5 {[%emt 0:16:20]} exd5 {[%emt 0:12:55]} 18. Bxf5 {[%emt 0:00:08]} Qe7 {[%emt 0:00:04]} 19. Rxd5 {[%emt 0:03:25]} Ra7 {[%emt 0:02:25]} 20. Re1 {[%emt 0:03:23]} Re8 {[%emt 0:13:10]} 21. Re4 {[%emt 0:02:15]} 1/2-1/2